Cogmind - Beta 16 @@@ ROGUE MODE // 2025.11.26 @ 20:34:05 Player: Skysub Result: Self-destructed Performance ------------- Evolutions (3) 1500 Regions Visited (5) 1000 Robots Destroyed (1) 5 Value Destroyed (25) 25 Prototype IDs (2) 40 Alien Tech Used (0) 0 Bonus (200) 200 TOTAL SCORE: 2770 Bonus ------- Pacifist 200 Cogmind --------- Core Integrity 672/700 Matter 263/300 Energy 97/100 System Corruption 0% Temperature Cool (0) Movement Flying (30) Location -7/Factory Parts ------- > --- POWER (2) -------- (None) > --- PROPULSION (4) --- Improved Flight Unit Cesium-ion Thruster Improved VTOL Module > --- UTILITY (5) ------ Improved Terrain Scanner > --- WEAPON (2) ------- Mace > --- INVENTORY (5) ---- Ion Engine Peak State ------------ > --- POWER ------------ Light Ion Engine > --- PROPULSION ------- Improved Flight Unit Improved Flight Unit Cesium-ion Thruster Improved VTOL Module > --- UTILITY ---------- Improved Terrain Scanner > --- WEAPON ----------- Mace > --- INVENTORY -------- Ion Engine [Rating: 19] Favorites ----------- Power Light Ion Engine Engine Light Ion Engine Propulsion Improved Flight Unit Flight Unit Improved Flight Unit Utility Improved Terrain Scanner Device Improved Terrain Scanner Weapon Mace Impact Weapon Mace Build | -11 -10 -9 -9 -8 -7 ------- Run | Yrd Mat Mat Sto Mat Fac Slots Evolved 6 | . . 2 . 2 2 Power 1 | . . . . . 1 Propulsion 2 | . . 1 . 1 . Utility 3 | . . 1 . 1 1 Weapon . | . . . . . . Parts Attached 9 | . . . 5 2 2 Power 1 | . . . . . 1 Engine 1 | . . . . . 1 Core . | . . . . . . Reactor . | . . . . . . Propulsion 6 | . . . 4 1 1 Treads . | . . . . . . Leg . | . . . . . . Wheel . | . . . . . . Hover . | . . . . . . Flight 6 | . . . 4 1 1 Utility 1 | . . . . 1 . Device 1 | . . . . 1 . Storage . | . . . . . . Processor . | . . . . . . Hackware . | . . . . . . Protection . | . . . . . . Artifact . | . . . . . . Weapon 1 | . . . 1 . . Energy Gun . | . . . . . . Energy Cannon . | . . . . . . Ballistic Gun . | . . . . . . Ballistic Cannon . | . . . . . . Launcher . | . . . . . . Special Weapon . | . . . . . . Impact Weapon 1 | . . . 1 . . Slashing Weapon . | . . . . . . Piercing Weapon . | . . . . . . Special Melee Weapon . | . . . . . . Unidentified Prototypes 2 | . . . 1 1 . Parts Lost 4 | . . . 1 1 2 Power 1 | . . . . . 1 Propulsion 3 | . . . 1 1 1 Utility . | . . . . . . Weapon . | . . . . . . Highest Loss Streak 2 | . . . 1 1 2 To Critical Strikes . | . . . . . . Average Backups 2 | 1 2 3 2 2 1 Power 1 | 1 2 2 2 2 1 Propulsion . | . . 1 . . . Utility . | . . . . . . Weapon . | . . . . . . Tool/Special . | . . . . . . Unused Backups 1 | . . . . . 1 Power 1 | . . . . . 1 Propulsion . | . . . . . . Utility . | . . . . . . Weapon . | . . . . . . Tool/Special . | . . . . . . Average Slot Usage (%) 21 | . . . 21 38 45 Engine 1 | . . . . . 6 Flight 13 | . . . 14 27 23 Device 1 | . . . . 2 7 Impact Weapon 4 | . . . 6 9 7 Peak Build Rating 19 | . . . 9 15 19 Average Rating 5 | . . . 3 10 16 On Entrance 4 | . . . . 9 15 Avg Prop Armor Cover (%) . | . . . . . . Naked Turns 136 | . 88 4 44 . . Heaviest Build 6 | . . . 2 3 6 Greatest Support 20 | 3 3 3 14 15 20 Greatest Overweight (x) . | . . . . . . Average Overweight (x) . | . . . . . . Largest Inventory Capacity 5 | 5 5 5 5 5 5 Average Capacity 5 | 5 5 5 5 5 5 Most Carried 4 | 2 3 3 4 2 1 Average Carried 2 | 1 2 3 2 2 1 Final Capacity 5 | 5 5 5 5 5 5 Final Carried 3 | 2 3 3 2 2 1 Class Distribution -------------------- 83% | Mutant 16% | Sprinter Dominant Class ---------------- Mutant | -10/Materials Mutant | -9/Materials Mutant | -9/Storage Mutant | -8/Materials Sprinter | -7/Factory Resources | -11 -10 -9 -9 -8 -7 ----------- Run | Yrd Mat Mat Sto Mat Fac Matter Collected 233 | 200 . . 33 . . Remotely . | . . . . . . Salvage Created 21 | . . . 21 . . Parts . | . . . . . . Haulers Intercepted . | . . . . . . Recyclers Shooed . | . . . . . . Parts Field Recycled . | . . . . . . Retrieved Matter . | . . . . . . Parts Self-Destructed . | . . . . . . Prevented . | . . . . . . Parts Restored . | . . . . . . Kills | -11 -10 -9 -9 -8 -7 ------- Run | Yrd Mat Mat Sto Mat Fac Combat Hostiles Destroyed . | . . . . . . Classes Destroyed 1 | . . . 1 . . Builder 1 | . . . 1 . . Best Kill Streak 1 | . . . 1 . . Combat Bots Only . | . . . . . . Max Kills in Single Turn 1 | . . . 1 . . Gunslinging . | . . . . . . Exploded . | . . . . . . Melee . | . . . . . . Uniques/NPCs Destroyed . | . . . . . . Combat | -11 -10 -9 -9 -8 -7 -------- Run | Yrd Mat Mat Sto Mat Fac Hostile Shots Fired 106 | . 24 . 36 16 30 Missed 54 | . 7 . 19 10 18 Hits 52 | . 17 . 17 6 12 Projectile 52 | . 17 . 17 6 12 Critical Strikes 3 | . . . . 2 1 Damage Taken 608 | . 145 . 177 94 192 Core 352 | . 145 . 98 81 28 Absorbed by Shields . | . . . . . . Core Remaining (%) 75 | 100 42 . 75 85 . Volleys Fired . | . . . . . . Largest . | . . . . . . Hottest . | . . . . . . Shots Fired . | . . . . . . Gun . | . . . . . . Cannon . | . . . . . . Launcher . | . . . . . . Special . | . . . . . . Kinetic . | . . . . . . Thermal . | . . . . . . Explosive . | . . . . . . Electromagnetic . | . . . . . . Robot Hit Streak . | . . . . . . Robot Miss Streak . | . . . . . . Penetration Max . | . . . . . . Secondary Targets . | . . . . . . Shots Hit Robots 1 | . . . 1 . . Core Hits 2 | . 2 . . . . Critical Kills . | . . . . . . Critical Parts Destroyed . | . . . . . . Critical Strikes . | . . . . . . Melee Attacks 5 | . . . 5 . . Impact 5 | . . . 5 . . Slashing . | . . . . . . Piercing . | . . . . . . Sneak Attacks 1 | . . . 1 . . Combat Hostiles . | . . . . . . Follow-up Attacks . | . . . . . . Damage Inflicted 66 | . 16 . 50 . . Guns . | . . . . . . Cannons . | . . . . . . Explosions . | . . . . . . Melee 50 | . . . 50 . . Ramming 16 | . 16 . . . . Kinetic . | . . . . . . Thermal . | . . . . . . Explosive . | . . . . . . Electromagnetic . | . . . . . . Impact 50 | . . . 50 . . Slashing . | . . . . . . Piercing . | . . . . . . Highest Corruption . | . . . . . . Average Corruption . | . . . . . . Corruption Purged . | . . . . . . Corruption Blocked . | . . . . . . Overload Shots . | . . . . . . Overflow Damage 10 | . . . 10 . . Projectiles . | . . . . . . Explosions . | . . . . . . Melee 10 | . . . 10 . . Knockbacks 1 | . . . 1 . . Impact 1 | . . . 1 . . Kinetic . | . . . . . . Secondary . | . . . . . . Self-Inflicted Damage 7 | . 7 . . . . Shots . | . . . . . . Rammed 4 | . 4 . . . . Targets Rammed 4 | . 4 . . . . Kicked . | . . . . . . Crushed . | . . . . . . Highest Temperature 16 | . . . . 14 16 Average Temperature 13 | . . . . 14 12 Received Heat Transfer 162 | . . . 18 90 54 Siege Activations . | . . . . . . Martial Activations . | . . . . . . Shielding Activations . | . . . . . . Robots Disrupted . | . . . . . . Combat Hostiles . | . . . . . . Robots Corrupted 1 | . . . 1 . . Combat Hostiles . | . . . . . . Parts Fried 1 | . . . 1 . . Impact Corruptions 1 | . . . 1 . . Robots Melted . | . . . . . . Combat Hostiles . | . . . . . . Parts Melted . | . . . . . . Heat Transferred . | . . . . . . Parts Sabotaged . | . . . . . . Parts Stolen . | . . . . . . Parts Stripped . | . . . . . . Power Chain Reactions . | . . . . . . Alert | -11 -10 -9 -9 -8 -7 ------- Run | Yrd Mat Mat Sto Mat Fac Maximum Alert Level . | . . . . . . Low Security (%) 100 | 100 100 100 100 100 100 Level 1 . | . . . . . . Level 2 . | . . . . . . Level 3 . | . . . . . . Level 4 . | . . . . . . Level 5 . | . . . . . . High Security . | . . . . . . Max Security . | . . . . . . Peak Influence 59 | . 15 . 59 49 21 Initial 24 | . . . . 24 21 Average 12 | . 3 . 15 29 12 Influence Increases 206 | . 32 . 114 45 15 Destroy 0b10 Robot/NC 5 | . . . 5 . . Successful Hack 34 | . 17 . 17 . . Disable Machine 30 | . . . 30 . . Destroy Structure 2 | . . . 2 . . Partial Spotted 45 | . 15 . . 30 . Lose Combat Pursuer 90 | . . . 60 15 15 Influence Decreases 206 | . 30 2 55 55 64 Entered New Map 65 | . . 2 . 35 28 Time Decay 115 | . 30 . 45 10 30 Lost Part 26 | . . . 10 10 6 Squads Dispatched 3 | . . . 1 2 . Investigation 1 | . . . . 1 . Extermination . | . . . . . . Reinforcement 2 | . . . 1 1 . Assault . | . . . . . . Garrison . | . . . . . . Intercept . | . . . . . . Searches Triggered . | . . . . . . Construction Impeded . | . . . . . . Haulers Reinforced . | . . . . . . Active Scanning Responses . | . . . . . . Cargo Convoy Interrupts . | . . . . . . Stealth | -11 -10 -9 -9 -8 -7 --------- Run | Yrd Mat Mat Sto Mat Fac Distress Signals 3 | . . . 2 1 . Communications Jammed . | . . . . . . Distress Signals . | . . . . . . Times Spotted 35 | . 3 . 13 10 9 Peak Tracking Total 12 | . 2 . 12 9 8 Tactical Retreats 4 | . . . 2 1 1 Traps | -11 -10 -9 -9 -8 -7 ------- Run | Yrd Mat Mat Sto Mat Fac Traps Triggered 1 | . . . . 1 . Indirectly . | . . . . . . Trap Hack Attempts . | . . . . . . Triggered . | . . . . . . Disarmed . | . . . . . . Reprogrammed . | . . . . . . Reused . | . . . . . . Traps Extracted . | . . . . . . Installed . | . . . . . . Triggered . | . . . . . . Machines | -11 -10 -9 -9 -8 -7 ---------- Run | Yrd Mat Mat Sto Mat Fac Machines Disabled 2 | . . . 2 . . Max in Single Turn 1 | . . . 1 . . Machines Repaired . | . . . . . . Machines Dismantled . | . . . . . . Machines Sabotaged . | . . . . . . Overloaded Fab Kills . | . . . . . . Hacking | -11 -10 -9 -9 -8 -7 --------- Run | Yrd Mat Mat Sto Mat Fac Machines Accessed 7 | . 2 . 5 . . Terminals 6 | . 2 . 4 . . Fabricators . | . . . . . . Repair Stations . | . . . . . . Recycling Units 1 | . . . 1 . . Scanalyzers . | . . . . . . Garrison Access . | . . . . . . Total Hacks 19 | . 7 . 12 . . Successful 8 | . 3 . 5 . . Failed 11 | . 4 . 7 . . Catastrophic 2 | . 1 . 1 . . Database Lockouts . | . . . . . . Manual 17 | . 7 . 10 . . Terminals 18 | . 7 . 11 . . Fabricators . | . . . . . . Repair Stations . | . . . . . . Recycling Units 1 | . . . 1 . . Scanalyzers . | . . . . . . Garrison Access . | . . . . . . Terminal Hacks 3 | . 1 . 2 . . Open Door 1 | . . . 1 . . Level Access Points 2 | . 1 . 1 . . Fabricator Hacks . | . . . . . . Repair Station Hacks . | . . . . . . Recycling Unit Hacks 1 | . . . 1 . . Report Inventory 1 | . . . 1 . . Scanalyzer . | . . . . . . Garrison Access Hacks . | . . . . . . Unauthorized Hacks 4 | . 2 . 2 . . Terminals 4 | . 2 . 2 . . Botnet 4 | . 2 . 2 . . Fabricators . | . . . . . . Repair Stations . | . . . . . . Recycling Units . | . . . . . . Scanalyzers . | . . . . . . Garrison Access . | . . . . . . Data Cores Recovered . | . . . . . . Used . | . . . . . . Hacking Detections 5 | . 2 . 3 . . Full Trace Events 3 | . 1 . 2 . . Feedback Events . | . . . . . . Feedback Blocked . | . . . . . . Robot Schematics Acquired . | . . . . . . Robots Built . | . . . . . . Authchips . | . . . . . . Time . | . . . . . . Total Robot Build Rating . | . . . . . . Part Schematics Acquired . | . . . . . . Parts Built . | . . . . . . Authchips . | . . . . . . Time . | . . . . . . Total Part Build Rating . | . . . . . . Part Studies Acquired . | . . . . . . Parts Repaired . | . . . . . . Time . | . . . . . . Parts Recycled . | . . . . . . Recycled Matter . | . . . . . . Retrieved Matter . | . . . . . . Retrieved Components . | . . . . . . Parts Scanalyzed . | . . . . . . Part Schematics Acquired . | . . . . . . Parts Damaged . | . . . . . . Bothacking | -11 -10 -9 -9 -8 -7 ------------ Run | Yrd Mat Mat Sto Mat Fac Used RIF Installer . | . . . . . . Robots Hacked . | . . . . . . Non-combat . | . . . . . . Combat . | . . . . . . Robot Hacks Applied . | . . . . . . Relay Couplers Released . | . . . . . . Fabnet Peak Effective % . | . . . . . . Robots Rewired . | . . . . . . Allies Hacked . | . . . . . . Hacks Repelled . | . . . . . . Allies | -11 -10 -9 -9 -8 -7 -------- Run | Yrd Mat Mat Sto Mat Fac Total Allies . | . . . . . . Largest Group . | . . . . . . Highest-Rated Group . | . . . . . . Highest-Rated Ally . | . . . . . . Total Orders . | . . . . . . Ally Attacks . | . . . . . . Total Damage . | . . . . . . Kills . | . . . . . . Allies Corrupted . | . . . . . . Allies Melted . | . . . . . . Intel | -11 -10 -9 -9 -8 -7 ------- Run | Yrd Mat Mat Sto Mat Fac Active Infowar (turns) 74 | . . . . 5 69 Terrain 74 | . . . . 5 69 Robot Analysis Total . | . . . . . . Derelict Logs Recovered . | . . . . . . Drone Launches . | . . . . . . Drone Recoveries . | . . . . . . Exploration | -11 -10 -9 -9 -8 -7 ------------- Run | Yrd Mat Mat Sto Mat Fac Turns Passed 330 | 17 88 4 120 32 69 Spaces Moved 730 | 29 165 8 233 85 210 Core 285 | 29 165 8 83 . . Treads . | . . . . . . Legs . | . . . . . . Wheels . | . . . . . . Hover . | . . . . . . Flight 445 | . . . 150 85 210 Fastest Speed 28 | 50 50 50 34 32 28 Average Speed 40 | 50 50 50 41 33 31 Slowest Speed 50 | 50 50 50 50 37 32 Overloaded Moves . | . . . . . . Propulsion Burnouts . | . . . . . . Robots Hopped 22 | . . . 13 6 3 Potential Cave-ins . | . . . . . . Cave-ins Triggered . | . . . . . . Exploration Rate (%) 20 | 3 41 3 51 15 11 Regions Visited 5 Branch Regions 1 Pre-discovered Areas . | . . . . . . Known Exits Taken 2 | . 1 . 1 . . Unknown Exits Taken 3 | 1 . 1 . 1 . Scrap Searched . | . . . . . . Spaces Dug 2 | . . . 2 . . Terrain Destroyed 2 | . . . 2 . . Melee 2 | . . . 2 . . Projectile . | . . . . . . AOE . | . . . . . . Terrain Rammed . | . . . . . . Walls Destroyed . | . . . . . . Machines Disabled . | . . . . . . Actions | -11 -10 -9 -9 -8 -7 --------- Run | Yrd Mat Mat Sto Mat Fac Total 727 | 30 169 7 232 80 209 Wait 1 | . . . 1 . . Move 686 | 28 164 7 207 75 205 Hop 17 | . . . 12 3 2 Pick Up 5 | 2 1 . 2 . . Fast Attach 5 | . . . 2 2 1 Attach 4 | . . . 3 . 1 Detach . | . . . . . . Swap . | . . . . . . Drop . | . . . . . . Fire . | . . . . . . Melee 5 | . . . 5 . . Ram 4 | . 4 . . . . Kick . | . . . . . . Crush . | . . . . . . Escape Stasis . | . . . . . . Rewire . | . . . . . . Trap . | . . . . . . Miscellaneous . | . . . . . . Route ------- -11/Scrapyard -10/Materials (discovered 3 exits: *Mat x3) -9/Materials -9/Storage -8/Materials -7/Factory History --------- Turn | Location | Event 2 | -11/Scrapyard | Met Revision 17 9 | -11/Scrapyard | Discovered new exit (range 16) 18 | -11/Scrapyard | Entered Materials 89 | -10/Materials | Identified exit to Materials 100 | -10/Materials | Core integrity fell below 50% 106 | -10/Materials | Entered another Materials area 106 | -9/Materials | Evolved 2 slots: Propulsion x1, Utility x1 106 | -9/Materials | Discovered new exit (range 8) 110 | -9/Materials | Entered Storage 208 | -9/Storage | Identified exit to Materials 230 | -9/Storage | Entered Materials 230 | -8/Materials | Evolved 2 slots: Propulsion x1, Utility x1 249 | -8/Materials | Discovered new exit (range 15) 262 | -8/Materials | Entered Factory 262 | -7/Factory | Evolved 2 slots: Power x1, Utility x1 331 | -7/Factory | Self-destructed Last Messages --------------- 00238_ ALERT: Hostiles spotted, dispatching reinforcements to Terminal M005. 00244_ Triggered Alarm Trap. 00244_ An alarm sounds. 00244_ ALERT: Alarm triggered, dispatching investigation squad. 00249_ EXIT=FOUND 00251_ Critical hit (Burn: +37). 00253_ Flight Unit destroyed. 00254_ Acquired Prototype Flight Unit. 00254_ Identified Imp. VTOL Module. 00257_ Acquired Imp. Terrain Scanner. 00261_ Critical hit (Burn: +37). PARAMETERS=POWER+1,UTILITY+1 LOCATION=UNKNOWN GOAL=ESCAPE 00285_ ALERT: All DSF locations entering lockdown mode. 00318_ Acquired Cesium-ion Thruster. 00328_ Imp. Flight Unit destroyed. 00328_ Critical hit (Burn: +37). 00328_ Lgt. Ion Engine destroyed. Map ----- +----------------------------------------------------+ | ????????# # "" "" """" #?????????????????????? | | ????????# # ""G"" #?????????????????????? | | ????????# #########+####?????????????????????? | | ????????# #????? # #???? #??????????????????? | | ????????# #??? ? # #???? #??????????????????? | | ????????# # ?? # ##### #??????????????????? | | ??????#?# # """ # #??????????????????? | | ????????# # """ # #??????????????????? | | ????????# # """ # ######?????????????? | | ????????# # "" # #?????????????? | | ????????# # "" #ss #?????????????? | | ????????# # + #?????????????? | | #???????# # """ # #?????????????? | | ######### # [ """ + #?????????????? | | # """ # #?????????????? | | # "" # #####?????????? | | # "" # ????????? | | # # ????????? | | # # ????????? | | ############### # g ????????? | | ???????????????######## a ????????? | | ?????????????????????# ############?????????? | | ???????????????????# #????????????????????? | | "" ?????????????????# #????????????????????? | | "" ???????????????# #????????????????????? | | "" = #??????????????# @ #????????????????????? | | #??????????????# #????????????????????? | | ""???" #??????????????# #????????????????????? | | "?????????????????????# #????????????????????? | | "?????????????????????# #????????????????????? | | ??????????????????????# #????????????????????? | | #######???????????????# #????????????????????? | | #???????????????+ #????????????????????? | | #???????????????# #????????????????????? | | #???????????????+ #????????????????????? | | #???????????????#######????????????????????? | | #??????????????????????????????????????????? | | #??????????????????????????????????????????? | | #??????????????????????????????????????????? | | #??????????????????????????????????????????? | | #??????????????????????????????????????????? | | #??????????????????????????????????????????? | | #??????????????????????????????????????????? | | #??????????????????????????????????????????? | | ###+###??????????????????????????????????????????? | | ?????????????????????????????????????????????????? | | ?????????????????????????????????????????????????? | | ?????????????????????????????????????????????????? | | ?????????????????????????????????????????????????? | | ?????????????????????????????????????????????????? | +----------------------------------------------------+ Best States ------------- Heat Dissipation 34 Energy Generation 10 Energy Capacity 125 Matter Stores 300 Matter Capacity 300 Sight Range 16 Terrain Scan Range 16 Terrain Scan Density 10 Evasion (%) 64 Item Schematics ----------------- None Robot Schematics ------------------ None Fabricated ------------ Nothing Repaired ---------- Nothing Studied --------- None Alien Tech Used ----------------- None Achievements -------------- None Challenges ------------ None Game ------ Seed VortexJunkCasing Manual? 0 Play Time 00:06:18 Cumulative 290.0 hours Start 2025.11.26 @ 20:28:56 End 2025.11.26 @ 20:34:05 Sessions 1 Manual Loads 0 Difficulty Rogue Special Mode None Game No. 334 Rogue 334 Adventurer 0 Explorer 0 Win Type - Total 18 Types 11/0/3/1/1/0/0/1/0/1 Lore% 77 Gallery% 75 Achievement% 57 Wizard Run 0 Options --------- Layout 1 ASCII 0 Keyboard 1 Movement Numpad Keybinds 0 Fullscreen 0 Font 32/SmallcapsGlow Map View 77x35 Zoom Use 0% Tactical HUD 1 Map Filters NONE Filters NONE Steam 1 RUN: b84536a5-c472-45db-bb8e-d731ad98b188